bitfinex/quotes_ETHUSD_20251017
["timestamp","ask_amount","ask_price","bid_price","bid_amount"]
[1760704174285,0.002,3793.8,3793.5,2.6360497]
[1760704174706,0.002,3793.8,3793.6,2.636013]
[1760704174883,6.6932,3793.9,3793.8,2.63587959]
[1760704174884,5.472,3793.9,3793.8,2.63587959]
[1760704175072,5.472,3793.9,3793.8,3.08867959]
[1760704175271,5.472,3793.9,3793.8,3.20834246]
[1760704175882,5.472,3793.9,3793.8,0.57246287]
[1760704176095,5.472,3793.9,3793.2,0.6848]
[1760704176519,5.472,3793.9,3793.8,2.63587959]
[1760704176709,5.472,3793.9,3793.8,3.08867959]
[1760704177619,0.002,3794.2,3794.1,2.63567117]
[1760704177918,0.002,3794.2,3794.1,3.20809354]
[1760704178319,0.002,3794.2,3794.1,3.42289354]
[1760704178629,0.002,3794.2,3794.1,0.57242237]
[1760704178913,0.002,3794.2,3794.1,2.63567117]
[1760704179115,0.002,3794.2,3794.0,2.63572961]
[1760704179815,0.002,3794.2,3793.6,0.2148]
[1760704179985,0.3678,3794.1,3793.1,3.08913207]
[1760704180320,0.3678,3794.1,3793.2,0.6033]
[1760704180485,5.8398,3794.1,3793.2,0.3713]
[1760704180694,0.95198,3794.0,3793.4,2.6360964]
[1760704180891,3.2328633,3793.9,3793.2,2.63627]
[1760704181092,0.4632,3793.8,3793.3,2.63622572]
[1760704181422,0.4632,3793.7,3793.3,2.63622572]
[1760704181603,0.1304,3793.9,3793.3,2.63622572]
[1760704181808,0.4632,3793.6,3793.3,2.63622572]
[1760704182318,0.4632,3793.6,3793.2,2.63629653]
[1760704182524,0.4632,3793.6,3793.1,0.001]
[1760704182819,0.4632,3793.6,3793.1,0.28666721]
[1760704183017,0.4632,3793.6,3793.1,0.001]
[1760704183321,0.4632,3793.5,3793.1,0.001]
[1760704183636,0.4624,3793.5,3793.2,2.63629604]
[1760704184011,0.1304,3793.9,3793.1,0.001]
[1760704184329,0.1304,3793.9,3793.4,2.63615458]
[1760704184537,5.6024,3793.9,3793.3,2.63621595]
[1760704185025,5.474,3793.9,3793.5,2.63603092]
[1760704185227,5.474,3793.9,3793.6,0.02636018]
[1760704185429,0.002,3793.9,3793.4,2.66246095]
[1760704185597,0.002,3793.9,3793.6,2.63597129]
[1760704185800,0.002,3793.9,3793.8,2.63587959]
[1760704185997,0.002,3793.9,3793.6,2.63601855]
[1760704186198,0.002,3793.9,3793.7,2.63594907]
[1760704186826,0.002,3793.9,3793.8,2.63587959]
[1760704187325,0.002,3793.9,3793.8,3.19422031]
[1760704188104,0.002,3793.9,3793.8,3.64702031]
[1760704188607,0.002,3793.9,3793.8,3.6733791]
[1760704189318,0.002,3793.9,3793.8,3.64702031]
[1760704194799,0.002,3793.9,3793.8,18.0846587]
[1760704195139,0.002,3793.9,3793.8,19.9438587]
[1760704195442,0.002,3793.9,3793.8,14.68728683]
[1760704196004,0.002,3793.9,3793.8,10.09675357]
[1760704197316,0.002,3793.9,3793.8,5.50622031]
[1760704197838,0.002,3793.9,3793.8,5.61188569]
[1760704200726,0.002,3794.3,3794.2,2.6356017]
[1760704200727,1e-08,3794.3,3794.2,2.6356017]
[1760704200927,1e-08,3794.3,3794.2,5.72349307]
[1760704201125,1e-08,3794.3,3794.2,6.26413706]
[1760704201317,1e-08,3794.3,3794.2,9.04313706]
[1760704201649,1e-08,3794.3,3794.2,6.26413706]
[1760704202034,1e-08,3794.3,3794.2,6.75623706]
[1760704204352,1e-08,3794.3,3794.2,9.48323706]
[1760704204734,1e-08,3794.3,3794.2,12.26223706]
[1760704207028,1e-08,3794.3,3794.2,9.48323706]
[1760704207463,0.00120001,3794.6,3794.5,3.26899333]
[1760704207665,0.00120001,3794.6,3794.5,4.90408384]
[1760704207836,0.00120001,3794.6,3794.5,5.35508384]
[1760704208035,0.4291,3795.3,3794.5,5.35508384]
[1760704208036,0.063,3795.9,3794.5,4.57889051]
[1760704208341,0.063,3795.9,3795.8,2.63449075]
[1760704208791,0.002,3795.9,3795.8,2.63449075]
[1760704209393,0.002,3795.9,3795.8,3.16403157]
[1760704209800,0.002,3795.9,3795.8,3.29523157]
[1760704212181,0.002,3795.9,3795.8,3.74623157]
[1760704212681,0.002,3795.9,3795.8,20.56749128]
[1760704212997,0.002,3795.9,3795.8,5.02323157]
[1760704213354,0.002,3795.9,3795.8,3.29523157]
[1760704213569,0.5048,3795.9,3795.8,2.76569075]
[1760704213779,0.5048,3795.9,3795.8,2.63449075]
[1760704213981,0.5048,3795.9,3795.3,2.63480296]
[1760704214192,0.5048,3795.9,3795.0,0.5048]
[1760704214193,3.06790469,3795.8,3795.0,0.5048]
[1760704214393,0.4334,3795.8,3794.8,0.1312]
[1760704214613,0.002,3795.9,3795.7,0.1312]
[1760704214775,0.4262,3795.8,3794.9,0.6336]
[1760704214976,0.4262,3795.7,3794.6,2.63532388]
[1760704215287,0.4262,3795.6,3795.2,2.63490616]
[1760704215460,0.4262,3795.5,3795.3,2.63482592]
[1760704215660,0.4262,3795.4,3795.3,2.63482592]
[1760704215873,0.0749,3795.9,3795.6,2.63460542]
[1760704216093,0.5011,3795.9,3795.7,2.63449276]
[1760704216259,0.5011,3795.9,3795.8,2.63449075]
[1760704216260,0.0749,3795.9,3795.8,2.63449075]
[1760704216457,0.002,3795.9,3795.8,3.16139981]
[1760704217094,0.002,3795.9,3795.8,3.74359981]
[1760704217288,0.002,3795.9,3795.8,5.47159981]
[1760704217595,0.002,3795.9,3795.8,6.10519981]
[1760704217998,1e-08,3796.3,3796.2,4.99581316]
[1760704218294,1e-08,3796.3,3796.2,23.13805355]
[1760704218462,1e-08,3796.3,3796.2,23.56271142]
[1760704218662,1e-08,3796.3,3796.2,6.50997804]
[1760704218898,1e-08,3796.3,3796.2,9.23397804]
[1760704219196,1e-08,3796.3,3796.2,6.05897804]
[1760704220492,1e-08,3796.3,3796.2,6.50997804]
[1760704221815,1e-08,3796.3,3796.2,6.05897804]
[1760704224190,1e-08,3796.3,3796.2,5.31979661]
[1760704224391,1e-08,3796.3,3796.2,4.49341316]
[1760704224597,0.42080001,3796.3,3796.2,4.49341316]
[1760704226789,1e-08,3796.3,3796.2,4.49341316]
[1760704227186,1e-08,3796.3,3796.2,4.96595529]
[1760704228405,1e-08,3796.3,3796.2,5.57321316]
[1760704228617,1e-08,3796.3,3796.2,6.66889851]
[1760704228830,1e-08,3796.3,3796.2,7.08769851]
[1760704229034,1e-08,3796.3,3796.2,9.73549851]
[1760704229333,1e-08,3796.3,3796.2,9.86669851]
[1760704229732,1e-08,3796.3,3796.2,14.29309951]
[1760704229913,1e-08,3796.3,3796.2,9.86669851]
[1760704230736,1e-08,3796.3,3796.2,7.08769851]
[1760704231244,0.4188,3797.5,3796.6,3.26753562]
[1760704231245,0.00120001,3796.7,3796.6,3.26753562]
[1760704231451,0.00120001,3796.7,3796.6,8.612691]
[1760704231599,0.00120001,3796.7,3796.6,5.256091]
[1760704231805,0.41810001,3796.7,3796.6,4.49313562]
[1760704232302,0.41810001,3796.7,3796.6,2.76513562]
[1760704232562,0.41810001,3796.7,3796.6,2.63393562]
[1760704233604,0.41810001,3796.7,3796.4,0.1312]
[1760704233829,0.41810001,3796.7,3795.2,2.85489922]
[1760704234030,0.4337,3796.6,3796.3,2.63408437]
[1760704234245,0.4337,3796.6,3795.7,0.1312]
[1760704234246,0.4337,3796.5,3796.2,2.63419058]
[1760704234416,0.43,3796.4,3796.0,2.63434129]
[1760704234748,0.43,3796.3,3796.2,2.63421316]
[1760704235449,0.00120001,3796.7,3796.6,2.63393562]
[1760704236073,0.00120001,3796.7,3796.6,3.16073118]
[1760704236219,0.00120001,3796.7,3796.6,3.63327053]
[1760704236414,0.00120001,3796.7,3796.6,4.24053118]
[1760704236844,0.00120001,3796.7,3796.6,3.16073118]
[1760704237047,0.42730001,3796.7,3796.6,2.63393562]
[1760704237244,0.00120001,3796.7,3796.6,2.63393562]
[1760704238731,0.42530001,3796.7,3796.6,2.63393562]
[1760704239551,0.00120001,3796.7,3796.6,2.63393562]
[1760704241134,0.00120001,3796.7,3796.6,2.66027497]
[1760704241543,0.00120001,3796.7,3796.6,3.16336512]
[1760704242159,0.42450001,3796.7,3796.1,0.001]
[1760704242356,1.728,3796.6,3796.1,0.001]
[1760704242729,0.4233,3796.5,3796.4,2.6340657]
[1760704242929,0.00120001,3796.7,3796.6,2.63393562]
[1760704243138,0.00120001,3796.7,3796.1,0.001]
[1760704243139,0.00120001,3796.7,3796.5,2.66033447]
[1760704243549,0.00120001,3796.7,3796.6,2.63393562]
[1760704244276,0.00120001,3796.7,3796.6,3.16336726]
[1760704244765,0.42450001,3796.7,3796.6,3.16336726]
[1760704244965,0.42450001,3796.7,3796.6,2.63393562]
[1760704246261,0.00120001,3796.7,3796.6,2.63393562]
[1760704246456,0.00120001,3796.7,3796.1,0.001]
[1760704246655,0.42450001,3796.7,3796.1,0.001]
[1760704247055,0.42450001,3796.7,3796.6,2.63393562]
[1760704247862,0.42450001,3796.7,3796.1,0.001]
[1760704248182,0.4233,3796.6,3796.3,2.63412788]
[1760704248482,0.00120001,3796.7,3796.3,2.63412788]
[1760704248483,0.4233,3796.5,3796.3,2.63412788]
[1760704248679,0.4233,3796.4,3796.3,2.63412788]
[1760704248879,0.4233,3796.4,3796.1,0.001]
[1760704249081,0.4233,3796.3,3796.1,0.001]
[1760704249284,0.4233,3796.2,3796.1,0.001]
[1760704249459,0.4233,3796.2,3796.1,2.63522405]
[1760704249651,0.4233,3796.5,3796.1,0.001]
[1760704249851,0.4233,3796.5,3796.4,2.6340724]
[1760704250180,0.4233,3796.5,3796.1,2.63525465]
[1760704250482,0.4233,3796.4,3796.1,0.001]
[1760704250683,0.4233,3796.3,3796.1,0.001]
[1760704250884,0.4233,3796.2,3796.1,0.001]
[1760704251983,3.05751316,3796.2,3796.1,0.001]
[1760704252284,3.62667298,3796.2,3796.1,0.001]
[1760704252596,5.35467298,3796.2,3796.1,0.001]
[1760704253857,5.98827298,3796.2,3796.1,0.001]
[1760704254286,5.35467298,3796.2,3796.1,0.001]
[1760704254501,5.19879648,3796.2,3796.1,0.001]
[1760704254860,5.19799648,3796.2,3796.1,0.001]
[1760704255458,4.19799648,3796.2,3796.1,0.001]
[1760704256160,4.83159648,3796.2,3796.1,0.001]
[1760704256993,4.19799648,3796.2,3796.1,0.001]
[1760704257862,4.88120463,3796.2,3796.1,0.001]
[1760704259526,0.41328332,3796.2,3796.1,0.001]
[1760704259695,0.6336,3796.5,3796.1,0.001]
[1760704259885,2.63421316,3796.2,3796.1,0.001]
[1760704260209,0.68072348,3796.7,3796.1,0.001]
[1760704260428,2.63412941,3796.4,3796.1,0.001]
[1760704260582,2.63421316,3796.2,3796.1,0.001]
[1760704260782,4.62563448,3796.2,3796.1,0.001]
[1760704261177,1.99142132,3796.2,3796.1,0.001]
[1760704261383,1.728,3796.2,3796.1,0.001]
[1760704261785,4.36221316,3796.2,3796.1,0.001]
[1760704261985,1.728,3796.2,3796.1,0.001]
[1760704262185,8.75673516,3796.2,3796.1,0.001]
[1760704262489,5.87607899,3796.2,3796.1,0.001]
[1760704262706,7.96847899,3796.2,3796.1,0.001]
[1760704263625,8.60207899,3796.2,3796.1,0.001]
[1760704263798,9.01537129,3796.2,3796.1,0.001]
[1760704263994,32.80198056,3796.2,3796.1,0.001]
[1760704264323,32.02646556,3796.2,3796.1,0.001]
[1760704264835,31.61317326,3796.2,3796.1,0.001]
[1760704264983,40.17497426,3796.2,3796.1,0.001]
[1760704265487,24.87197898,3795.5,3795.4,0.001]
[1760704265820,11.72332951,3795.5,3795.4,0.001]
[1760704266137,4.36269898,3795.5,3795.4,0.001]
[1760704267629,4.99629898,3795.5,3795.4,0.001]
[1760704267939,10.53639918,3795.5,3795.4,0.001]
[1760704268124,5.45560835,3795.5,3795.4,0.001]
[1760704269247,12.81854435,3795.5,3795.4,0.001]
[1760704269419,12.20641434,3795.5,3795.4,0.001]
[1760704269747,9.02803034,3795.5,3795.4,0.001]
[1760704270245,30.25580934,3795.5,3795.4,0.001]
[1760704270631,23.10385734,3795.5,3795.4,0.001]
[1760704270838,9.54572934,3795.5,3795.4,0.001]
[1760704271003,10.04390234,3795.5,3795.4,0.001]
[1760704271203,11.69205134,3795.5,3795.4,0.001]
[1760704271616,11.69205134,3795.5,3794.1,0.238]
[1760704271617,0.6336,3795.2,3794.1,0.001]
[1760704271818,9.8954777,3794.2,3794.1,0.001]
[1760704272032,2.00462536,3795.5,3795.1,0.237]
[1760704272247,2.00462536,3795.5,3794.2,0.6714]
[1760704272248,2.63511554,3794.9,3794.8,0.237]
[1760704272419,2.63512197,3794.9,3794.5,0.4344]
[1760704272746,0.6336,3795.4,3794.2,0.237]
[1760704272908,2.3616,3795.2,3794.2,0.237]
[1760704273108,2.6356017,3794.2,3794.1,0.001]
[1760704273338,4.3636017,3794.2,3794.1,0.001]
[1760704273713,12.5827117,3794.2,3794.1,0.001]
[1760704274121,4.9972017,3794.2,3794.1,0.001]
[1760704274328,14.7556447,3794.2,3794.1,0.001]
[1760704274526,17.52174717,3794.2,3794.1,0.001]
[1760704274742,12.25975265,3794.2,3794.1,0.001]
[1760704274955,12.21380017,3794.2,3794.1,0.001]
[1760704275120,12.08017723,3794.2,3794.1,0.001]
[1760704275315,14.80825423,3794.2,3794.1,0.001]
[1760704276320,18.39415823,3794.2,3794.1,0.001]
[1760704276752,18.14070248,3794.2,3794.1,0.001]
[1760704276921,18.55425936,3794.2,3794.1,0.001]
[1760704277323,22.03795236,3794.2,3794.1,0.001]
[1760704277522,20.33994236,3794.2,3794.1,0.001]
[1760704278054,12.09794836,3794.2,3794.1,0.001]
[1760704278220,5.45671083,3794.2,3794.1,0.001]
[1760704278661,2.82030913,3794.2,3794.1,0.001]
[1760704278956,3.355347,3795.8,3794.1,0.6724]
[1760704279185,0.04593994,3795.6,3794.2,0.4344]
[1760704279322,2.63525082,3794.8,3794.1,0.001]
[1760704279639,14.15900627,3795.4,3794.3,2.63547504]
[1760704279640,2.63499539,3795.1,3794.3,2.63547504]
[1760704279816,2.63499539,3795.1,3794.2,0.6714]
[1760704279817,0.04593994,3795.6,3794.4,0.4344]
[1760704280021,0.002,3795.7,3794.4,0.4344]
[1760704280218,0.002,3795.7,3795.6,0.237]
[1760704280720,0.002,3795.7,3795.6,3.30602957]
[1760704280921,0.002,3795.7,3795.6,3.90010444]
[1760704281319,0.002,3795.7,3795.6,3.92645073]
[1760704281736,0.002,3795.7,3795.6,3.90010444]
[1760704281951,0.002,3795.7,3795.6,3.92645073]
[1760704282134,0.002,3796.1,3796.0,4.36235194]
[1760704282470,0.002,3796.5,3796.4,2.63407438]
[1760704282676,0.002,3796.5,3796.4,4.36207438]
[1760704282854,0.002,3796.5,3796.4,4.83147438]
[1760704283161,0.002,3796.5,3796.4,4.96267438]
[1760704283536,0.002,3796.5,3796.4,4.98901512]
[1760704283746,0.002,3796.5,3796.4,5.77480332]
[1760704284055,0.002,3796.5,3796.4,5.74846258]
[1760704286866,0.002,3796.5,3796.4,6.38206258]
[1760704287879,0.002,3796.5,3796.4,5.61726258]
[1760704288085,0.002,3796.5,3796.4,6.25086258]
[1760704289088,0.002,3796.5,3796.4,5.61726258]
[1760704289999,0.002,3796.5,3796.4,6.25086258]
[1760704290882,1e-08,3796.7,3796.6,3.26753562]
[1760704291081,1e-08,3796.7,3796.6,6.08028544]
[1760704291283,1e-08,3796.7,3796.6,6.54968544]
[1760704292586,1e-08,3796.7,3796.6,12.81370444]
[1760704292824,1e-08,3796.7,3796.6,10.35283944]
[1760704292985,1e-08,3798.0,3797.9,3.26663404]
[1760704293319,1e-08,3798.0,3797.9,5.34762778]
[1760704293524,1e-08,3798.0,3797.9,5.79069744]
[1760704293722,1e-08,3798.0,3797.9,10.27231944]
[1760704294300,1e-08,3798.0,3797.9,12.34911662]
[1760704294522,1e-08,3798.0,3797.9,9.90438962]
[1760704294724,1e-08,3798.0,3797.9,5.92397762]
[1760704295391,1e-08,3798.0,3797.9,5.15709744]
[1760704295587,1e-08,3798.0,3797.9,0.3266634]
[1760704295812,1e-08,3798.0,3797.3,0.2347]
[1760704295985,0.1687,3797.9,3797.3,0.2347]
[1760704296188,0.1687,3797.9,3797.0,2.63365669]
[1760704296418,0.1687,3797.9,3796.9,0.34025189]
[1760704296419,0.1687,3797.9,3797.1,2.63355278]
[1760704296585,2.80178755,3797.9,3797.2,0.28682528]
[1760704296788,2.63313241,3797.8,3797.2,0.28682528]
[1760704297010,2.80415093,3797.9,3797.2,0.28682528]
[1760704297201,2.80415093,3797.9,3797.2,2.9203337]
[1760704297202,0.1711,3797.9,3797.2,2.9203337]
[1760704297410,0.1711,3797.9,3797.2,0.28682528]
[1760704297612,1e-08,3798.0,3797.2,2.63346701]
[1760704297808,2.63309341,3797.9,3796.9,1.9627]
[1760704298021,1e-08,3798.0,3797.2,0.1312]
[1760704298226,1e-08,3798.0,3797.3,2.63339422]
[1760704298523,2.80345339,3797.9,3797.2,0.1312]
[1760704298724,0.1704,3797.9,3797.3,0.32341812]
[1760704298931,0.0997,3797.8,3795.9,0.4694]
[1760704299115,0.002,3797.1,3796.6,0.1312]
[1760704299496,0.002,3797.1,3795.6,0.36784105]
[1760704299497,0.0997,3797.0,3795.7,0.4694]
[1760704299796,2.63388172,3796.7,3796.1,0.1312]
[1760704299997,0.0997,3797.0,3796.1,0.1312]
[1760704300199,0.0997,3797.0,3795.6,0.238]
[1760704300200,2.63428629,3796.1,3795.6,0.001]
[1760704300389,0.168,3795.7,3795.6,0.001]
[1760704300786,2.90246016,3795.7,3795.6,0.001]
[1760704301190,4.63046016,3795.7,3795.6,0.001]
[1760704301993,4.67639571,3795.7,3795.6,0.001]
[1760704302199,15.00198633,3795.7,3795.6,0.001]
[1760704302412,13.02384533,3795.7,3795.6,0.001]
[1760704302599,5.44802033,3795.7,3795.6,0.001]
[1760704302915,0.04593555,3795.7,3795.6,0.001]
[1760704303102,0.1006,3796.9,3795.6,0.4704]
[1760704303287,2.63414377,3796.3,3795.6,0.001]
[1760704303490,2.68001793,3796.4,3795.6,0.001]
[1760704303706,1.728,3796.3,3795.6,2.63562856]
[1760704303902,0.04592743,3796.4,3795.8,2.63447261]
[1760704304227,0.04592743,3796.4,3795.7,0.27668286]
[1760704304530,2.63421261,3796.3,3795.6,0.001]
[1760704304713,2.63414377,3796.3,3795.6,0.001]
[1760704304916,2.63447462,3795.9,3795.6,0.001]
[1760704305221,2.73540373,3796.3,3795.6,0.001]
[1760704305430,2.63435304,3796.0,3795.6,0.001]
[1760704306131,2.79963741,3795.9,3795.6,0.001]
[1760704306314,2.63433663,3796.1,3795.6,0.001]
[1760704306502,2.63422863,3796.2,3795.6,0.001]
[1760704306690,2.63429083,3796.1,3795.6,0.001]
[1760704306890,2.63440344,3796.0,3795.6,0.001]
[1760704307395,0.41327232,3796.5,3795.6,0.001]
[1760704307599,0.90098121,3796.5,3795.6,0.001]
[1760704307800,2.63432301,3796.1,3795.6,0.001]
[1760704308329,0.41327232,3796.5,3795.6,0.001]
[1760704308830,0.41327232,3796.5,3795.6,2.63556831]
[1760704309057,0.41327232,3796.5,3795.6,0.1322]
[1760704309212,3.04730319,3796.5,3795.8,2.63443424]
[1760704309412,0.41327232,3796.5,3795.8,0.58705421]
[1760704309628,0.41327232,3796.5,3795.8,2.63443856]
[1760704309944,2.75237895,3797.0,3795.9,0.4693]
[1760704310150,2.75237895,3797.0,3796.4,0.2366]
[1760704310307,0.1187,3797.0,3796.4,2.87066317]
[1760704310504,0.1187,3797.0,3796.4,0.2366]
[1760704310705,0.04792037,3797.1,3796.6,2.63393011]
[1760704310905,0.04792037,3797.1,3796.5,2.63397337]
[1760704311150,2.68151133,3797.1,3796.5,2.63399831]
[1760704311309,0.1184,3796.6,3795.8,2.63448127]
[1760704311505,0.1184,3796.6,3795.7,2.85515447]
[1760704311706,0.1184,3796.6,3796.1,2.63426708]
[1760704312450,0.04792037,3797.1,3796.2,0.4533]
[1760704312740,2.63386506,3796.8,3796.0,2.63430243]
[1760704313038,0.1181,3796.9,3795.8,0.4533]
[1760704313241,2.63393714,3796.6,3795.7,0.2206]
[1760704313544,0.1181,3796.9,3795.6,0.001]
[1760704313545,2.63456016,3795.7,3795.6,0.001]
[1760704314028,2.73766016,3795.7,3795.6,0.001]
[1760704314611,2.63456016,3795.7,3795.6,0.001]
[1760704315144,2.73766016,3795.7,3795.6,0.001]
[1760704316863,7.72363216,3795.7,3795.6,0.001]
[1760704317053,8.7758983,3795.7,3795.6,0.001]
[1760704317253,9.23518257,3795.7,3795.6,0.001]
[1760704317450,9.18924837,3795.7,3795.6,0.001]
[1760704317949,9.03679237,3795.7,3795.6,0.001]
[1760704318155,9.67039237,3795.7,3795.6,0.001]
[1760704318329,15.14239237,3795.7,3795.6,0.001]
[1760704319030,12.89084882,3795.3,3795.2,0.001]
[1760704319252,12.89084882,3795.3,3794.1,0.001]
[1760704319253,3.26871554,3794.9,3794.1,0.001]
[1760704319472,4.3636017,3794.2,3794.1,0.001]
[1760704319636,9.3773657,3794.2,3794.1,0.001]
[1760704319983,12.4869117,3794.2,3794.1,0.001]
[1760704320277,10.40234351,3794.2,3794.1,0.001]
[1760704320484,18.67953651,3794.2,3794.1,0.001]
[1760704320646,18.67953651,3794.2,3793.7,0.001]
[1760704320647,3.26941011,3793.9,3793.7,0.001]
[1760704320846,31.85050253,3793.4,3793.3,1e-08]
[1760704321051,31.85050253,3793.4,3792.6,1e-08]
[1760704321052,3.27024407,3792.7,3792.6,1e-08]
[1760704321236,34.50856921,3792.7,3792.6,1e-08]
[1760704321434,2.3616,3792.6,3792.3,0.001]
[1760704321756,2.3616,3792.6,3791.0,0.95125425]
[1760704321757,4.36575685,3791.1,3791.0,0.95125425]
[1760704322162,4.46535685,3791.1,3791.0,0.95125425]
[1760704322473,8.72668189,3791.1,3791.0,0.95125425]
[1760704322642,8.06893589,3791.1,3791.0,0.95125425]
[1760704322853,5.14493589,3791.1,3791.0,0.95125425]
[1760704323061,5.9809669,3791.1,3791.0,0.95125425]
[1760704323455,8.3941849,3791.1,3791.0,0.95125425]
[1760704323659,5.75642805,3791.1,3787.1,0.13310495]
[1760704323874,5.75642805,3791.1,3787.3,0.4349]
[1760704323875,2.63972685,3788.3,3787.3,0.4349]
[1760704324188,2.626852,3788.8,3787.3,0.4349]
[1760704324189,2.6399852,3788.0,3787.3,0.4349]
[1760704324354,1.728,3788.3,3787.0,0.2206]
[1760704324745,1.728,3788.3,3786.8,0.6626]
[1760704324746,1.728,3787.5,3786.4,0.2277]
[1760704324947,2.64019431,3787.6,3786.5,0.4349]
[1760704325256,0.2448,3789.0,3787.5,0.2277]
[1760704325480,14.54939314,3788.9,3787.9,2.63997693]
[1760704325683,0.1188,3788.9,3787.6,0.4349]
[1760704325893,0.1452,3789.0,3787.6,0.4349]
[1760704326045,16.15859314,3789.4,3788.5,0.2277]
[1760704326377,0.41406222,3789.2,3788.5,0.2277]
[1760704326876,0.41406222,3789.2,3788.6,0.33022223]
[1760704327076,0.41406222,3789.2,3788.5,0.2277]
[1760704327585,0.41406222,3789.2,3788.5,2.86724935]
[1760704327754,0.41406222,3789.2,3788.5,3.30214935]
[1760704327950,0.04600836,3789.4,3789.3,2.63900984]
[1760704328281,0.04600836,3789.4,3788.5,0.2277]
[1760704328498,1.728,3789.0,3787.5,0.2277]
[1760704328701,0.1184,3788.9,3787.7,2.6401149]
[1760704328897,0.1184,3788.9,3787.5,0.2277]
[1760704329052,1.728,3788.8,3787.3,0.2277]
[1760704329399,1.77401356,3788.8,3787.6,2.64017649]
[1760704329550,0.46012179,3788.8,3788.0,2.63988848]
[1760704329748,0.46012179,3788.8,3788.2,2.63977614]
[1760704329968,1.728,3788.7,3788.1,0.2277]
[1760704330184,0.46012179,3788.8,3788.1,0.2277]
[1760704330386,0.46012179,3788.8,3788.7,2.63942777]
[1760704330554,0.04601356,3788.8,3788.7,3.07432777]
[1760704330744,14.43059314,3790.3,3788.7,3.07432777]
[1760704330745,0.41405094,3789.5,3788.7,0.74233278]
[1760704330952,0.1019,3791.1,3789.4,2.6389402]
[1760704331149,0.04600437,3790.1,3789.5,0.4349]
[1760704331383,0.41391388,3790.9,3790.0,2.63852242]
[1760704331581,0.41391388,3790.9,3790.1,0.6626]
[1760704331781,0.1671,3791.7,3790.1,0.6626]
[1760704331782,0.0459882,3791.3,3790.8,2.6379656]
[1760704331951,0.0459882,3791.3,3790.1,0.68898452]
[1760704332151,0.0459882,3791.3,3790.2,2.63838319]
[1760704332371,0.0459882,3791.3,3790.1,0.6626]
[1760704332372,0.0459882,3791.3,3790.6,2.63808297]
[1760704332573,0.0459882,3791.3,3790.6,0.4349]
[1760704332777,0.0459882,3791.3,3790.8,2.63795317]
[1760704332972,0.0459882,3791.3,3791.0,2.63782643]
[1760704333172,0.0459882,3791.3,3791.1,3.07264782]
[1760704333388,2.6371823,3792.0,3791.0,2.63781293]
[1760704333590,3.2279597,3792.0,3791.2,2.63766302]
[1760704333883,0.04597943,3792.1,3791.3,0.4349]
[1760704334049,0.04597943,3792.1,3791.5,2.63747762]
[1760704334248,0.04597943,3792.1,3790.8,0.1312]
[1760704334453,1.9457,3792.0,3790.7,0.2277]
[1760704334682,1.728,3791.8,3790.7,0.2277]
[1760704334887,0.45829003,3791.7,3790.7,0.2277]
[1760704335073,2.63758031,3791.4,3790.7,0.2277]
[1760704335390,2.63743869,3791.6,3790.0,0.2277]
[1760704335391,1.728,3791.2,3790.0,0.2277]
[1760704335684,0.04598542,3791.3,3790.2,0.4349]
[1760704335893,0.41381137,3791.5,3790.8,2.63796479]
[1760704336096,0.71893457,3791.5,3790.3,0.02638313]
[1760704336279,0.71893457,3791.5,3790.1,2.86611769]
[1760704336280,2.63781324,3791.1,3790.1,2.86611769]
[1760704336453,0.51381137,3791.5,3790.2,2.63838319]
[1760704336649,2.63782263,3791.1,3790.2,2.63838319]
[1760704336892,1.728,3791.3,3790.1,2.86609998]
[1760704337198,2.63754813,3791.4,3790.1,0.2277]
[1760704337497,2.63802905,3790.8,3790.0,0.2277]
[1760704337931,0.48793595,3791.3,3790.1,0.2277]
[1760704338078,0.41381137,3791.5,3791.4,2.63754813]
[1760704338388,0.53168107,3792.0,3790.1,0.6626]
[1760704339087,2.63728206,3791.8,3790.7,2.63797134]
[1760704339294,2.637409,3791.6,3790.8,2.63794013]
[1760704339494,2.63752766,3791.5,3790.7,2.63803155]
[1760704339828,2.63747708,3791.6,3790.7,2.63803519]
[1760704339970,1.77398146,3791.6,3790.6,0.4349]
[1760704340165,2.63752746,3791.5,3790.7,2.63802826]
[1760704340365,2.68339122,3791.6,3790.8,2.63793034]
[1760704340593,0.60973672,3791.6,3791.1,2.63768784]
[1760704340793,1.77398146,3791.6,3790.7,0.4349]
[1760704341097,0.04598146,3791.6,3791.0,2.63782476]
[1760704341266,0.04598146,3791.6,3791.0,2.63776396]
[1760704341464,0.04598146,3791.6,3791.0,2.63780956]
[1760704341668,0.04598146,3791.6,3791.1,2.63774403]
[1760704342003,2.78404209,3791.6,3790.1,0.7026]
[1760704342212,0.71493167,3791.5,3790.6,2.63809661]
[1760704342411,0.71493167,3791.5,3790.2,0.356885]
[1760704342412,6.18693167,3791.5,3790.9,2.63785493]
[1760704342709,6.18693167,3791.5,3791.0,2.63781825]
[1760704343266,6.18693167,3791.5,3790.5,0.4749]
[1760704343475,5.472,3791.5,3790.5,0.4749]
[1760704343699,5.472,3791.5,3790.7,2.63798739]
[1760704343903,5.472,3791.5,3790.7,2.63797931]
[1760704344223,5.472,3791.5,3790.1,0.2277]
[1760704344224,0.1553,3790.8,3790.1,0.2277]
[1760704344380,2.63803519,3790.7,3789.4,0.4749]
[1760704344588,2.63803519,3790.7,3789.9,2.63857392]
[1760704344908,1.8833,3790.8,3789.7,0.2234]
[1760704345110,1.8833,3790.8,3788.8,1.728]
[1760704345111,0.1553,3790.8,3789.2,0.2234]
[1760704345296,0.1553,3790.8,3789.4,0.4749]
[1760704345495,2.63849845,3790.1,3789.3,2.63897162]
[1760704345695,2.63850221,3790.1,3789.3,2.63897162]
[1760704345896,2.63846561,3790.1,3789.1,2.63914913]
[1760704346108,11.447564,3790.0,3788.3,0.4749]
[1760704346310,2.63866167,3789.8,3788.3,0.4749]
[1760704346511,1.728,3789.7,3788.5,2.64051897]
[1760704346694,2.63895271,3789.4,3788.6,2.63948449]